[Event "Titled Tuesday Blitz April 4 Early 2023"]
[White "Tsotsonava, Elene"]
[Black "Kubatko, Ivan"]
[WhiteFideId "13615939"]
[BlackFideId "24111473"]
[WhiteElo "1829"]
[BlackElo "2285"]
[Result "1-0"]
[Round "06"]
[TimeControl "180+2"]
[Date "2023.04.04"]
[WhiteClock "0:00:16"]
[BlackClock "0:00:03"]

1. e4 {[%clk 0:03:00]}  d5 {[%clk 0:02:58]} 2. exd5 {[%clk 0:03:00]}  Qxd5 {[%clk 0:02:59]} 3. Nc3 {[%clk 0:02:58]}  Qa5 {[%clk 0:02:58]} 4. d4 {[%clk 0:02:56]}  Nf6 {[%clk 0:02:59]} 5. Nf3 {[%clk 0:02:55]}  Bg4 {[%clk 0:02:59]} 6. h3 {[%clk 0:02:56]}  Bh5 {[%clk 0:02:59]} 7. g4 {[%clk 0:02:56]}  Bg6 {[%clk 0:02:59]} 8. Bg2 {[%clk 0:02:57]}  Nc6 {[%clk 0:02:59]} 9. Bd2 {[%clk 0:02:51]}  O-O-O {[%clk 0:02:57]} 10. g5 {[%clk 0:02:40]}  Nh5 {[%clk 0:02:43]} 11. Ne2 {[%clk 0:02:09]}  Qb6 {[%clk 0:02:33]} 12. Bc3 {[%clk 0:02:08]}  e5 {[%clk 0:02:29]} 13. d5 {[%clk 0:02:06]}  Bc5 {[%clk 0:02:03]} 14. O-O {[%clk 0:01:55]}  Rhe8 {[%clk 0:01:56]} 15. Nd2 {[%clk 0:01:19]}  Nb4 {[%clk 0:01:33]} 16. Nc4 {[%clk 0:01:15]}  Qb5 {[%clk 0:01:25]} 17. Nxe5 {[%clk 0:01:10]}  Bxc2 {[%clk 0:01:03]} 18. Qd2 {[%clk 0:01:09]}  f6 {[%clk 0:00:27]} 19. a3 {[%clk 0:00:44]}  fxe5 {[%clk 0:00:14]} 20. axb4 {[%clk 0:00:43]}  Bd3 {[%clk 0:00:14]} 21. bxc5 {[%clk 0:00:37]}  Bxe2 {[%clk 0:00:14]} 22. Rfe1 {[%clk 0:00:37]}  Nf4 {[%clk 0:00:13]} 23. Ra5 {[%clk 0:00:28]}  Qd3 {[%clk 0:00:12]} 24. Qxd3 {[%clk 0:00:27]}  Bxd3 {[%clk 0:00:12]} 25. Rxe5 {[%clk 0:00:24]}  Ne2+ {[%clk 0:00:07]} 26. Kh2 {[%clk 0:00:22]}  Nxc3 {[%clk 0:00:07]} 27. Rxe8 {[%clk 0:00:21]}  Rxe8 {[%clk 0:00:08]} 28. bxc3 {[%clk 0:00:21]}  a6 {[%clk 0:00:05]} 29. d6 {[%clk 0:00:20]}  Re5 {[%clk 0:00:02]} 30. d7+ {[%clk 0:00:15]}  Kxd7 {[%clk 0:00:03]} 31. c6+ {[%clk 0:00:16]} 1-0


[Site "https://www.chess.com"]

[Event "Titled Tuesday Blitz April 4 Early 2023"]
[White "Meduri, Aakaash"]
[Black "Semenova, Alina"]
[WhiteFideId "2032252"]
[BlackFideId "24113875"]
[WhiteElo "2113"]
[BlackElo "1833"]
[Result "0-1"]
[Round "06"]
[TimeControl "180+2"]
[Date "2023.04.04"]
[WhiteClock "0:00:34"]
[BlackClock "0:00:22"]

1. e4 {[%clk 0:02:58]}  e5 {[%clk 0:02:00]} 2. Nf3 {[%clk 0:02:57]}  Nf6 {[%clk 0:02:01]} 3. Nxe5 {[%clk 0:02:55]}  d6 {[%clk 0:01:56]} 4. Nf3 {[%clk 0:02:55]}  Nxe4 {[%clk 0:01:57]} 5. d4 {[%clk 0:02:55]}  d5 {[%clk 0:01:56]} 6. Bd3 {[%clk 0:02:54]}  Bd6 {[%clk 0:01:56]} 7. c4 {[%clk 0:02:52]}  c6 {[%clk 0:01:55]} 8. Nc3 {[%clk 0:02:52]}  Nxc3 {[%clk 0:01:54]} 9. bxc3 {[%clk 0:02:52]}  O-O {[%clk 0:01:55]} 10. O-O {[%clk 0:02:52]}  Bg4 {[%clk 0:01:55]} 11. h3 {[%clk 0:02:52]}  Bh5 {[%clk 0:01:55]} 12. cxd5 {[%clk 0:02:51]}  cxd5 {[%clk 0:01:54]} 13. Be2 {[%clk 0:02:43]}  Nd7 {[%clk 0:01:50]} 14. Qb3 {[%clk 0:02:35]}  Nb6 {[%clk 0:01:45]} 15. Ba3 {[%clk 0:02:35]}  Bxa3 {[%clk 0:01:41]} 16. Qxa3 {[%clk 0:02:35]}  Qf6 {[%clk 0:01:34]} 17. Rfe1 {[%clk 0:02:32]}  Rfe8 {[%clk 0:01:26]} 18. Rab1 {[%clk 0:02:24]}  Bxf3 {[%clk 0:01:18]} 19. Bxf3 {[%clk 0:02:24]}  Nc4 {[%clk 0:01:18]} 20. Qc5 {[%clk 0:02:14]}  Nd2 {[%clk 0:01:17]} 21. Rxe8+ {[%clk 0:02:13]}  Rxe8 {[%clk 0:01:15]} 22. Rc1 {[%clk 0:01:48]}  Nxf3+ {[%clk 0:01:15]} 23. gxf3 {[%clk 0:01:48]}  Qxf3 {[%clk 0:01:15]} 24. Qxa7 {[%clk 0:01:46]}  h5 {[%clk 0:00:40]} 25. Qxb7 {[%clk 0:01:32]}  Re6 {[%clk 0:00:39]} 26. Qb8+ {[%clk 0:00:35]}  Kh7 {[%clk 0:00:35]} 27. Qb5 {[%clk 0:00:33]}  Rg6+ {[%clk 0:00:24]} 28. Kf1 {[%clk 0:00:33]}  Qh1+ {[%clk 0:00:22]} 29. Ke2 {[%clk 0:00:34]}  Qxc1 {[%clk 0:00:22]} 0-1


[Site "https://www.chess.com"]

[Event "Titled Tuesday Blitz April 4 Early 2023"]
[White "Vargas Rodriguez, Wilver"]
[Black "Harriott, Tyrell"]
[WhiteFideId "3509672"]
[BlackFideId "2086484"]
[WhiteElo "2224"]
[BlackElo "2107"]
[Result "1-0"]
[Round "06"]
[TimeControl "180+2"]
[Date "2023.04.04"]
[WhiteClock "0:00:17"]
[BlackClock "0:00:33"]

1. e4 {[%clk 0:03:00]}  d6 {[%clk 0:02:59]} 2. Nf3 {[%clk 0:02:53]}  Nf6 {[%clk 0:02:59]} 3. d3 {[%clk 0:02:51]}  e5 {[%clk 0:02:59]} 4. g3 {[%clk 0:02:51]}  Be7 {[%clk 0:02:59]} 5. Bg2 {[%clk 0:02:52]}  O-O {[%clk 0:02:59]} 6. O-O {[%clk 0:02:53]}  Nbd7 {[%clk 0:02:59]} 7. Be3 {[%clk 0:02:52]}  Re8 {[%clk 0:02:59]} 8. Nbd2 {[%clk 0:02:51]}  c6 {[%clk 0:03:00]} 9. c3 {[%clk 0:02:45]}  Qc7 {[%clk 0:03:01]} 10. d4 {[%clk 0:02:43]}  Nf8 {[%clk 0:03:01]} 11. Nc4 {[%clk 0:02:37]}  Ng6 {[%clk 0:03:00]} 12. a4 {[%clk 0:02:28]}  Bd7 {[%clk 0:03:00]} 13. Qb3 {[%clk 0:02:25]}  Be6 {[%clk 0:02:59]} 14. Nfd2 {[%clk 0:02:16]}  Reb8 {[%clk 0:02:56]} 15. Qc2 {[%clk 0:02:02]}  Qc8 {[%clk 0:02:48]} 16. b4 {[%clk 0:01:41]}  Bh3 {[%clk 0:02:46]} 17. dxe5 {[%clk 0:01:25]}  dxe5 {[%clk 0:02:45]} 18. Nf3 {[%clk 0:01:11]}  Bxg2 {[%clk 0:02:26]} 19. Kxg2 {[%clk 0:01:12]}  Nf4+ {[%clk 0:02:26]} 20. Bxf4 {[%clk 0:00:55]}  exf4 {[%clk 0:02:25]} 21. e5 {[%clk 0:00:55]}  Ne8 {[%clk 0:02:21]} 22. Rad1 {[%clk 0:00:47]}  Qe6 {[%clk 0:02:18]} 23. Qe4 {[%clk 0:00:39]}  fxg3 {[%clk 0:02:08]} 24. hxg3 {[%clk 0:00:40]}  g6 {[%clk 0:01:58]} 25. Ne3 {[%clk 0:00:22]}  f5 {[%clk 0:01:54]} 26. Qf4 {[%clk 0:00:22]}  Ng7 {[%clk 0:01:47]} 27. Nd4 {[%clk 0:00:19]}  Qf7 {[%clk 0:01:43]} 28. Rh1 {[%clk 0:00:19]}  g5 {[%clk 0:01:41]} 29. Qf3 {[%clk 0:00:17]}  Rf8 {[%clk 0:01:35]} 30. Rh6 {[%clk 0:00:14]}  g4 {[%clk 0:01:26]} 31. Qf4 {[%clk 0:00:13]}  Nh5 {[%clk 0:01:20]} 32. Rxh5 {[%clk 0:00:12]}  Qxh5 {[%clk 0:01:20]} 33. Ne6 {[%clk 0:00:11]}  Rf7 {[%clk 0:01:16]} 34. Rh1 {[%clk 0:00:11]}  Qg6 {[%clk 0:01:16]} 35. Qc4 {[%clk 0:00:09]}  Bf8 {[%clk 0:00:51]} 36. Nf4 {[%clk 0:00:08]}  Qg7 {[%clk 0:00:46]} 37. Nxf5 {[%clk 0:00:07]}  Qg5 {[%clk 0:00:42]} 38. Nd6 {[%clk 0:00:04]}  Bxd6 {[%clk 0:00:37]} 39. exd6 {[%clk 0:00:05]}  Rf8 {[%clk 0:00:32]} 40. d7 {[%clk 0:00:05]}  Kh8 {[%clk 0:00:28]} 41. Qe6 {[%clk 0:00:03]}  Qe7 {[%clk 0:00:25]} 42. Qxe7 {[%clk 0:00:02]}  Rxe7 {[%clk 0:00:25]} 43. Ng6+ {[%clk 0:00:03]}  Kg7 {[%clk 0:00:25]} 44. Nxe7 {[%clk 0:00:04]}  Rd8 {[%clk 0:00:26]} 45. Nf5+ {[%clk 0:00:04]}  Kf6 {[%clk 0:00:26]} 46. Nd4 {[%clk 0:00:05]}  Rxd7 {[%clk 0:00:25]} 47. Rh6+ {[%clk 0:00:05]}  Kg5 {[%clk 0:00:25]} 48. Rh4 {[%clk 0:00:05]}  b6 {[%clk 0:00:25]} 49. Ne2 {[%clk 0:00:04]}  h5 {[%clk 0:00:25]} 50. Nf4 {[%clk 0:00:03]}  Rh7 {[%clk 0:00:25]} 51. Ne6+ {[%clk 0:00:03]}  Kf6 {[%clk 0:00:25]} 52. Nd4 {[%clk 0:00:03]}  Ke5 {[%clk 0:00:26]} 53. Ne2 {[%clk 0:00:03]}  Kf5 {[%clk 0:00:26]} 54. Nf4 {[%clk 0:00:03]}  Kg5 {[%clk 0:00:27]} 55. Ne6+ {[%clk 0:00:03]}  Kf6 {[%clk 0:00:27]} 56. Nd4 {[%clk 0:00:04]}  Ke5 {[%clk 0:00:27]} 57. Nxc6+ {[%clk 0:00:04]}  Kf6 {[%clk 0:00:26]} 58. Nd4 {[%clk 0:00:05]}  Kg5 {[%clk 0:00:26]} 59. Ne2 {[%clk 0:00:05]}  Rh6 {[%clk 0:00:26]} 60. Nf4 {[%clk 0:00:05]}  Rh7 {[%clk 0:00:26]} 61. Rxh5+ {[%clk 0:00:06]}  Rxh5 {[%clk 0:00:26]} 62. Nxh5 {[%clk 0:00:07]}  Kxh5 {[%clk 0:00:27]} 63. c4 {[%clk 0:00:07]}  Kg5 {[%clk 0:00:25]} 64. c5 {[%clk 0:00:08]}  bxc5 {[%clk 0:00:25]} 65. bxc5 {[%clk 0:00:09]}  Kf5 {[%clk 0:00:26]} 66. f3 {[%clk 0:00:09]}  gxf3+ {[%clk 0:00:26]} 67. Kxf3 {[%clk 0:00:10]}  Ke5 {[%clk 0:00:26]} 68. g4 {[%clk 0:00:10]}  Kd5 {[%clk 0:00:27]} 69. g5 {[%clk 0:00:11]}  Kxc5 {[%clk 0:00:28]} 70. g6 {[%clk 0:00:12]}  Kd6 {[%clk 0:00:29]} 71. g7 {[%clk 0:00:12]}  Kc5 {[%clk 0:00:29]} 72. g8=Q {[%clk 0:00:13]}  Kb4 {[%clk 0:00:30]} 73. Qg4+ {[%clk 0:00:13]}  Ka5 {[%clk 0:00:30]} 74. Ke3 {[%clk 0:00:14]}  a6 {[%clk 0:00:30]} 75. Kd3 {[%clk 0:00:14]}  Kb6 {[%clk 0:00:31]} 76. Qb4+ {[%clk 0:00:13]}  Ka7 {[%clk 0:00:31]} 77. Qa5 {[%clk 0:00:14]}  Kb7 {[%clk 0:00:31]} 78. Kc4 {[%clk 0:00:15]}  Ka7 {[%clk 0:00:32]} 79. Kc5 {[%clk 0:00:15]}  Kb7 {[%clk 0:00:33]} 80. Qb6+ {[%clk 0:00:15]}  Ka8 {[%clk 0:00:32]} 81. Qxa6+ {[%clk 0:00:16]}  Kb8 {[%clk 0:00:33]} 82. Qd6+ {[%clk 0:00:15]}  Kb7 {[%clk 0:00:33]} 83. Qc6+ {[%clk 0:00:16]}  Kb8 {[%clk 0:00:33]} 84. Qd7 {[%clk 0:00:16]}  Ka8 {[%clk 0:00:33]} 85. Kb6 {[%clk 0:00:17]} 1-0


[Site "https://www.chess.com"]

[Event "Titled Tuesday Blitz April 4 Early 2023"]
[White "Padmini, Rout"]
[Black "Toktomushev, Teimur"]
[WhiteFideId "5029295"]
[BlackFideId "14176726"]
[WhiteElo "2314"]
[BlackElo "2116"]
[Result "1-0"]
[Round "06"]
[TimeControl "180+2"]
[Date "2023.04.04"]
[WhiteClock "0:01:03"]
[BlackClock "0:00:02"]

1. e4 {[%clk 0:03:00]}  c5 {[%clk 0:03:00]} 2. Nf3 {[%clk 0:03:00]}  e6 {[%clk 0:03:00]} 3. d4 {[%clk 0:02:59]}  cxd4 {[%clk 0:03:01]} 4. Nxd4 {[%clk 0:03:00]}  a6 {[%clk 0:03:02]} 5. c4 {[%clk 0:02:59]}  Nf6 {[%clk 0:02:58]} 6. Nc3 {[%clk 0:02:59]}  Qc7 {[%clk 0:02:54]} 7. Be2 {[%clk 0:02:58]}  b6 {[%clk 0:02:52]} 8. O-O {[%clk 0:02:57]}  Bb7 {[%clk 0:02:52]} 9. f3 {[%clk 0:02:58]}  Bd6 {[%clk 0:02:31]} 10. Kh1 {[%clk 0:02:57]}  Be7 {[%clk 0:01:25]} 11. Be3 {[%clk 0:02:54]}  O-O {[%clk 0:01:24]} 12. Rc1 {[%clk 0:02:50]}  d6 {[%clk 0:01:24]} 13. b4 {[%clk 0:02:49]}  Nbd7 {[%clk 0:01:24]} 14. Nb3 {[%clk 0:02:41]}  Rac8 {[%clk 0:01:23]} 15. Qe1 {[%clk 0:02:39]}  Qb8 {[%clk 0:01:15]} 16. Qf2 {[%clk 0:02:39]}  Ba8 {[%clk 0:01:14]} 17. a3 {[%clk 0:02:38]}  Rfd8 {[%clk 0:00:45]} 18. Na4 {[%clk 0:02:32]}  Rc6 {[%clk 0:00:35]} 19. Nd4 {[%clk 0:02:08]}  Rc7 {[%clk 0:00:29]} 20. Nxb6 {[%clk 0:01:59]}  Nxb6 {[%clk 0:00:26]} 21. Nxe6 {[%clk 0:01:59]}  fxe6 {[%clk 0:00:26]} 22. Bxb6 {[%clk 0:01:59]}  Rdc8 {[%clk 0:00:21]} 23. Bxc7 {[%clk 0:01:59]}  Rxc7 {[%clk 0:00:22]} 24. Rc2 {[%clk 0:01:53]}  Nd7 {[%clk 0:00:19]} 25. Rfc1 {[%clk 0:01:53]}  Ne5 {[%clk 0:00:18]} 26. Qg3 {[%clk 0:01:53]}  Bc6 {[%clk 0:00:11]} 27. c5 {[%clk 0:01:50]}  Ba4 {[%clk 0:00:11]} 28. Rc3 {[%clk 0:01:44]}  Rc8 {[%clk 0:00:04]} 29. f4 {[%clk 0:01:36]}  Ng6 {[%clk 0:00:03]} 30. Bc4 {[%clk 0:01:13]}  Kh8 {[%clk 0:00:02]} 31. Bxe6 {[%clk 0:01:12]}  Rc7 {[%clk 0:00:02]} 32. cxd6 {[%clk 0:01:09]}  Bxd6 {[%clk 0:00:02]} 33. e5 {[%clk 0:01:07]}  Rxc3 {[%clk 0:00:02]} 34. Qxc3 {[%clk 0:01:04]}  Bf8 {[%clk 0:00:02]} 35. Qc8 {[%clk 0:01:04]}  Qxc8 {[%clk 0:00:02]} 36. Rxc8 {[%clk 0:01:03]} 1-0


[Site "https://www.chess.com"]

[Event "Titled Tuesday Blitz April 4 Early 2023"]
[White "Nery Junior, Jose Antonio"]
[Black "Jovic, Stanoje"]
[WhiteFideId "2104822"]
[BlackFideId "905020"]
[WhiteElo "2197"]
[BlackElo "2236"]
[Result "1-0"]
[Round "06"]
[TimeControl "180+2"]
[Date "2023.04.04"]
[WhiteClock "0:01:10"]
[BlackClock "0:00:40"]

1. e4 {[%clk 0:03:00]}  c6 {[%clk 0:02:54]} 2. d4 {[%clk 0:03:00]}  d5 {[%clk 0:02:54]} 3. exd5 {[%clk 0:03:00]}  cxd5 {[%clk 0:02:54]} 4. c4 {[%clk 0:03:01]}  Nf6 {[%clk 0:02:53]} 5. Nc3 {[%clk 0:03:02]}  Nc6 {[%clk 0:02:53]} 6. Bg5 {[%clk 0:03:01]}  dxc4 {[%clk 0:02:51]} 7. Bxc4 {[%clk 0:02:59]}  e6 {[%clk 0:02:50]} 8. Nf3 {[%clk 0:02:58]}  Be7 {[%clk 0:02:51]} 9. O-O {[%clk 0:02:58]}  O-O {[%clk 0:02:51]} 10. Qd2 {[%clk 0:02:51]}  a6 {[%clk 0:02:50]} 11. Rad1 {[%clk 0:02:51]}  b5 {[%clk 0:02:50]} 12. Bd3 {[%clk 0:02:51]}  Bb7 {[%clk 0:02:49]} 13. Bb1 {[%clk 0:02:48]}  Rc8 {[%clk 0:02:41]} 14. Rfe1 {[%clk 0:02:47]}  Na5 {[%clk 0:02:34]} 15. Ne5 {[%clk 0:02:39]}  Nc4 {[%clk 0:02:33]} 16. Nxc4 {[%clk 0:02:38]}  Rxc4 {[%clk 0:02:33]} 17. a4 {[%clk 0:02:33]}  b4 {[%clk 0:02:30]} 18. Bxf6 {[%clk 0:02:33]}  bxc3 {[%clk 0:02:13]} 19. Qd3 {[%clk 0:02:31]}  g6 {[%clk 0:02:06]} 20. Bxe7 {[%clk 0:02:30]}  Qd5 {[%clk 0:02:04]} 21. f3 {[%clk 0:02:16]}  Rfc8 {[%clk 0:02:00]} 22. bxc3 {[%clk 0:01:57]}  Rxc3 {[%clk 0:01:59]} 23. Qe4 {[%clk 0:01:55]}  Qb3 {[%clk 0:01:55]} 24. Qh4 {[%clk 0:01:50]}  Rxf3 {[%clk 0:01:48]} 25. gxf3 {[%clk 0:01:42]}  Qxf3 {[%clk 0:01:45]} 26. Be4 {[%clk 0:01:41]}  Bxe4 {[%clk 0:01:35]} 27. Qxe4 {[%clk 0:01:42]}  Qb3 {[%clk 0:01:23]} 28. Bf6 {[%clk 0:01:31]}  h6 {[%clk 0:01:03]} 29. Qf4 {[%clk 0:01:24]}  g5 {[%clk 0:01:00]} 30. Qg3 {[%clk 0:01:18]}  Rc3 {[%clk 0:00:56]} 31. Qg4 {[%clk 0:01:14]}  Qxa4 {[%clk 0:00:40]} 32. Qh5 {[%clk 0:01:10]} 1-0


[Site "https://www.chess.com"]

[Event "Titled Tuesday Blitz April 4 Early 2023"]
[White "Baches Garcia, Guillermo"]
[Black "Arat, Ufuk Sezen"]
[WhiteFideId "2209764"]
[BlackFideId "6309089"]
[WhiteElo "2460"]
[BlackElo "2289"]
[Result "1-0"]
[Round "06"]
[TimeControl "180+2"]
[Date "2023.04.04"]
[WhiteClock "0:00:16"]
[BlackClock "0:00:04"]

1. e4 {[%clk 0:03:00]}  c5 {[%clk 0:03:00]} 2. Nf3 {[%clk 0:03:00]}  e6 {[%clk 0:03:00]} 3. d4 {[%clk 0:02:59]}  cxd4 {[%clk 0:03:00]} 4. Nxd4 {[%clk 0:03:00]}  Nc6 {[%clk 0:03:01]} 5. Nc3 {[%clk 0:03:00]}  Qc7 {[%clk 0:03:01]} 6. Be3 {[%clk 0:03:00]}  a6 {[%clk 0:02:58]} 7. g4 {[%clk 0:03:00]}  b5 {[%clk 0:02:57]} 8. Nxc6 {[%clk 0:02:58]}  dxc6 {[%clk 0:02:58]} 9. Qf3 {[%clk 0:02:50]}  Bb7 {[%clk 0:02:58]} 10. O-O-O {[%clk 0:02:46]}  e5 {[%clk 0:02:57]} 11. g5 {[%clk 0:02:42]}  h6 {[%clk 0:02:43]} 12. h4 {[%clk 0:02:37]}  hxg5 {[%clk 0:02:42]} 13. hxg5 {[%clk 0:02:37]}  Rxh1 {[%clk 0:02:41]} 14. Qxh1 {[%clk 0:02:37]}  Rd8 {[%clk 0:02:27]} 15. Bd3 {[%clk 0:02:15]}  Ne7 {[%clk 0:02:18]} 16. f3 {[%clk 0:01:58]}  Ng6 {[%clk 0:02:04]} 17. Qg1 {[%clk 0:01:56]}  c5 {[%clk 0:01:53]} 18. Be2 {[%clk 0:01:44]}  Rxd1+ {[%clk 0:01:29]} 19. Qxd1 {[%clk 0:01:43]}  Be7 {[%clk 0:01:20]} 20. Nd5 {[%clk 0:01:38]}  Qd8 {[%clk 0:01:20]} 21. Nxe7 {[%clk 0:01:34]}  Qxe7 {[%clk 0:01:13]} 22. Qg1 {[%clk 0:01:25]}  c4 {[%clk 0:01:10]} 23. Bc5 {[%clk 0:01:22]}  Qd7 {[%clk 0:01:09]} 24. Qh2 {[%clk 0:01:12]}  Qe6 {[%clk 0:00:48]} 25. Bf1 {[%clk 0:01:09]}  Nf4 {[%clk 0:00:45]} 26. Qh8+ {[%clk 0:01:03]}  Kd7 {[%clk 0:00:45]} 27. Qxg7 {[%clk 0:00:59]}  Qg6 {[%clk 0:00:44]} 28. Qxe5 {[%clk 0:00:57]}  Ne6 {[%clk 0:00:40]} 29. Bh3 {[%clk 0:00:47]}  Qg8 {[%clk 0:00:21]} 30. Be3 {[%clk 0:00:27]}  Qh7 {[%clk 0:00:18]} 31. Bf5 {[%clk 0:00:24]}  Qh1+ {[%clk 0:00:18]} 32. Kd2 {[%clk 0:00:24]}  Qxf3 {[%clk 0:00:17]} 33. g6 {[%clk 0:00:20]}  Qg2+ {[%clk 0:00:16]} 34. Kc3 {[%clk 0:00:20]}  b4+ {[%clk 0:00:16]} 35. Kxb4 {[%clk 0:00:19]}  a5+ {[%clk 0:00:17]} 36. Kxa5 {[%clk 0:00:18]}  Qxc2 {[%clk 0:00:06]} 37. gxf7 {[%clk 0:00:16]}  Qb1 {[%clk 0:00:04]} 38. Qxe6+ {[%clk 0:00:16]}  Kc7 {[%clk 0:00:04]} 39. Bb6+ {[%clk 0:00:16]} 1-0


[Site "https://www.chess.com"]

[Event "Titled Tuesday Blitz April 4 Early 2023"]
[White "Mikhaylova, Irina"]
[Black "Lach, Aleksandra"]
[WhiteFideId "4109040"]
[BlackFideId "1134299"]
[WhiteElo "1975"]
[BlackElo "2111"]
[Result "0-1"]
[Round "06"]
[TimeControl "180+2"]
[Date "2023.04.04"]
[WhiteClock "0:00:36"]
[BlackClock "0:01:29"]

1. d4 {[%clk 0:02:59]}  f5 {[%clk 0:02:56]} 2. Nf3 {[%clk 0:02:59]}  Nf6 {[%clk 0:02:55]} 3. g3 {[%clk 0:03:00]}  g6 {[%clk 0:02:55]} 4. Bg2 {[%clk 0:03:00]}  Bg7 {[%clk 0:02:56]} 5. O-O {[%clk 0:03:01]}  O-O {[%clk 0:02:57]} 6. b3 {[%clk 0:03:01]}  d5 {[%clk 0:02:54]} 7. Bb2 {[%clk 0:03:01]}  e6 {[%clk 0:02:51]} 8. c4 {[%clk 0:02:54]}  c6 {[%clk 0:02:50]} 9. Ne5 {[%clk 0:02:54]}  Nbd7 {[%clk 0:02:49]} 10. Nxd7 {[%clk 0:02:54]}  Bxd7 {[%clk 0:02:49]} 11. Nd2 {[%clk 0:02:54]}  Qe7 {[%clk 0:02:46]} 12. Nf3 {[%clk 0:02:54]}  Be8 {[%clk 0:02:39]} 13. Ne5 {[%clk 0:02:54]}  Nd7 {[%clk 0:02:39]} 14. f4 {[%clk 0:02:42]}  Nxe5 {[%clk 0:02:34]} 15. dxe5 {[%clk 0:02:42]}  Bf7 {[%clk 0:02:27]} 16. cxd5 {[%clk 0:02:30]}  cxd5 {[%clk 0:02:21]} 17. Qd4 {[%clk 0:02:17]}  Rfc8 {[%clk 0:02:18]} 18. Rac1 {[%clk 0:02:05]}  Bf8 {[%clk 0:02:18]} 19. Rfd1 {[%clk 0:01:46]}  b6 {[%clk 0:01:57]} 20. e3 {[%clk 0:01:34]}  Qb7 {[%clk 0:01:56]} 21. Qd2 {[%clk 0:01:31]}  Qa6 {[%clk 0:01:53]} 22. a3 {[%clk 0:01:18]}  Qb5 {[%clk 0:01:49]} 23. b4 {[%clk 0:01:16]}  a5 {[%clk 0:01:47]} 24. Bf1 {[%clk 0:01:16]}  Qa4 {[%clk 0:01:45]} 25. bxa5 {[%clk 0:01:00]}  bxa5 {[%clk 0:01:43]} 26. Bd3 {[%clk 0:00:49]}  Bc5 {[%clk 0:01:36]} 27. Bc2 {[%clk 0:00:41]}  Qb5 {[%clk 0:01:36]} 28. Bd4 {[%clk 0:00:39]}  Bxa3 {[%clk 0:01:34]} 29. Rb1 {[%clk 0:00:38]}  Bb4 {[%clk 0:01:34]} 30. Qd3 {[%clk 0:00:37]}  Qc6 {[%clk 0:01:31]} 31. Ra1 {[%clk 0:00:36]}  Qxc2 {[%clk 0:01:29]} 32. Qxc2 {[%clk 0:00:36]}  Rxc2 {[%clk 0:01:29]} 0-1


[Site "https://www.chess.com"]

[Event "Titled Tuesday Blitz April 4 Early 2023"]
[White "Kielinkei"]
[Black "Kornyukov, Alexey"]
[BlackFideId "4150457"]
[WhiteElo "2412"]
[BlackElo "2352"]
[Result "0-1"]
[Round "06"]
[TimeControl "180+2"]
[Date "2023.04.04"]
[WhiteClock "0:02:17"]
[BlackClock "0:02:27"]

1. Nf3 {[%clk 0:03:00]}  Nf6 {[%clk 0:02:59]} 2. g3 {[%clk 0:02:59]}  g6 {[%clk 0:02:58]} 3. b3 {[%clk 0:02:59]}  Bg7 {[%clk 0:02:58]} 4. Bb2 {[%clk 0:03:00]}  O-O {[%clk 0:02:58]} 5. Bg2 {[%clk 0:03:00]}  b6 {[%clk 0:02:58]} 6. c4 {[%clk 0:02:58]}  Bb7 {[%clk 0:02:56]} 7. O-O {[%clk 0:02:59]}  c5 {[%clk 0:02:57]} 8. d3 {[%clk 0:02:57]}  Nc6 {[%clk 0:02:56]} 9. Nc3 {[%clk 0:02:54]}  Nd4 {[%clk 0:02:53]} 10. e3 {[%clk 0:02:51]}  Nxf3+ {[%clk 0:02:53]} 11. Bxf3 {[%clk 0:02:51]}  Bxf3 {[%clk 0:02:53]} 12. Qxf3 {[%clk 0:02:52]}  e5 {[%clk 0:02:50]} 13. Nd5 {[%clk 0:02:50]}  Nxd5 {[%clk 0:02:48]} 14. Qxd5 {[%clk 0:02:51]}  d6 {[%clk 0:02:49]} 15. f4 {[%clk 0:02:46]}  exf4 {[%clk 0:02:47]} 16. Bxg7 {[%clk 0:02:47]}  Kxg7 {[%clk 0:02:47]} 17. Rxf4 {[%clk 0:02:45]}  Qe7 {[%clk 0:02:46]} 18. Re4 {[%clk 0:02:41]}  Qd7 {[%clk 0:02:41]} 19. Rf1 {[%clk 0:02:39]}  Rae8 {[%clk 0:02:36]} 20. Kg2 {[%clk 0:02:16]}  Rxe4 {[%clk 0:02:33]} 21. Qd4+ {[%clk 0:02:17]}  Rxd4 {[%clk 0:02:27]} 0-1


[Site "https://www.chess.com"]

[Event "Titled Tuesday Blitz April 4 Early 2023"]
[White "Melikhov, Evgeny V."]
[Black "Winkels, Marcel"]
[WhiteFideId "4122046"]
[BlackFideId "1003887"]
[WhiteElo "2158"]
[BlackElo "1900"]
[Result "1-0"]
[Round "06"]
[TimeControl "180+2"]
[Date "2023.04.04"]
[WhiteClock "0:00:23"]
[BlackClock "0:00:02"]

1. d4 {[%clk 0:03:00]}  Nf6 {[%clk 0:02:59]} 2. c4 {[%clk 0:03:00]}  g6 {[%clk 0:02:58]} 3. Nc3 {[%clk 0:03:00]}  d5 {[%clk 0:02:59]} 4. cxd5 {[%clk 0:03:00]}  Nxd5 {[%clk 0:02:59]} 5. e4 {[%clk 0:02:59]}  Nxc3 {[%clk 0:03:00]} 6. bxc3 {[%clk 0:03:00]}  c5 {[%clk 0:03:00]} 7. Bc4 {[%clk 0:03:00]}  Bg7 {[%clk 0:03:00]} 8. Ne2 {[%clk 0:03:01]}  O-O {[%clk 0:03:00]} 9. Be3 {[%clk 0:03:00]}  Nc6 {[%clk 0:02:56]} 10. h4 {[%clk 0:03:00]}  Na5 {[%clk 0:02:40]} 11. Bd3 {[%clk 0:02:58]}  b6 {[%clk 0:02:35]} 12. h5 {[%clk 0:02:54]}  cxd4 {[%clk 0:02:15]} 13. cxd4 {[%clk 0:02:53]}  Bb7 {[%clk 0:02:05]} 14. Qd2 {[%clk 0:02:11]}  Re8 {[%clk 0:01:56]} 15. hxg6 {[%clk 0:02:02]}  hxg6 {[%clk 0:01:51]} 16. Bh6 {[%clk 0:01:59]}  Bh8 {[%clk 0:01:50]} 17. Qg5 {[%clk 0:01:51]}  e5 {[%clk 0:01:24]} 18. Qxd8 {[%clk 0:01:37]}  Raxd8 {[%clk 0:01:18]} 19. d5 {[%clk 0:01:37]}  Bxd5 {[%clk 0:01:15]} 20. exd5 {[%clk 0:01:27]}  e4 {[%clk 0:01:14]} 21. Rd1 {[%clk 0:01:20]}  exd3 {[%clk 0:01:13]} 22. Rxd3 {[%clk 0:01:20]}  Bf6 {[%clk 0:00:56]} 23. Be3 {[%clk 0:01:10]}  Nc4 {[%clk 0:00:52]} 24. O-O {[%clk 0:00:55]}  Nxe3 {[%clk 0:00:51]} 25. fxe3 {[%clk 0:00:55]}  Re5 {[%clk 0:00:46]} 26. Rxf6 {[%clk 0:00:53]}  Rexd5 {[%clk 0:00:38]} 27. Rxd5 {[%clk 0:00:52]}  Rxd5 {[%clk 0:00:39]} 28. Nd4 {[%clk 0:00:52]}  Ra5 {[%clk 0:00:36]} 29. Rf2 {[%clk 0:00:51]}  Ra3 {[%clk 0:00:35]} 30. Re2 {[%clk 0:00:51]}  a6 {[%clk 0:00:32]} 31. Kf2 {[%clk 0:00:50]}  b5 {[%clk 0:00:32]} 32. Rb2 {[%clk 0:00:49]}  Kf8 {[%clk 0:00:28]} 33. Nc2 {[%clk 0:00:44]}  Ra4 {[%clk 0:00:27]} 34. a3 {[%clk 0:00:43]}  Ke7 {[%clk 0:00:25]} 35. Rb4 {[%clk 0:00:43]}  Ra5 {[%clk 0:00:19]} 36. Rd4 {[%clk 0:00:37]}  Ke6 {[%clk 0:00:18]} 37. Ke2 {[%clk 0:00:37]}  Ke5 {[%clk 0:00:17]} 38. Kd3 {[%clk 0:00:36]}  f5 {[%clk 0:00:17]} 39. g3 {[%clk 0:00:33]}  g5 {[%clk 0:00:16]} 40. Kc3 {[%clk 0:00:33]}  Ke6 {[%clk 0:00:08]} 41. Kb3 {[%clk 0:00:29]}  Ke5 {[%clk 0:00:07]} 42. Nb4 {[%clk 0:00:26]}  Ra4 {[%clk 0:00:05]} 43. Nd3+ {[%clk 0:00:24]}  Ke6 {[%clk 0:00:02]} 44. Nc5+ {[%clk 0:00:23]} 1-0


[Site "https://www.chess.com"]